[Event "*** Titled Tuesday Blitz"]
[Site "Chess.com"]
[Date "2021.03.02"]
[Round "6"]
[White "The_filthy"]
[Black "ErikRonka"]
[Result "1-0"]
[WhiteElo "2345"]
[BlackElo "2450"]
[TimeControl "180+1"]
[EndTime "11:06:16 PST"]
[Termination "The_filthy won by resignation"]

1. e4 {[%clk 0:03:00.9]} 1... c6 {[%clk 0:03:00.1]} 2. Nf3 {[%clk 0:02:59]} 2...
d5 {[%clk 0:03:01]} 3. Nc3 {[%clk 0:02:59.3]} 3... dxe4 {[%clk 0:03:00.4]} 4.
Nxe4 {[%clk 0:02:59.3]} 4... Nd7 {[%clk 0:03:01]} 5. Bc4 {[%clk 0:02:55.9]} 5...
Ngf6 {[%clk 0:03:00.9]} 6. Neg5 {[%clk 0:02:51.3]} 6... e6 {[%clk 0:02:59.8]} 7.
Qe2 {[%clk 0:02:51.5]} 7... Nb6 {[%clk 0:02:52.7]} 8. Bb3 {[%clk 0:02:51.7]}
8... h6 {[%clk 0:02:49.2]} 9. Ne4 {[%clk 0:02:44.7]} 9... Be7 {[%clk 0:02:34.6]}
10. d4 {[%clk 0:02:37.1]} 10... a5 {[%clk 0:02:14.9]} 11. a4 {[%clk 0:02:35.8]}
11... Nbd5 {[%clk 0:02:11.9]} 12. Ng3 {[%clk 0:02:27.9]} 12... O-O {[%clk
0:02:08.3]} 13. O-O {[%clk 0:02:27.6]} 13... b5 {[%clk 0:01:54.7]} 14. Ne5
{[%clk 0:02:24.5]} 14... Qb6 {[%clk 0:01:50.3]} 15. Rd1 {[%clk 0:02:00.8]} 15...
Ba6 {[%clk 0:01:45.5]} 16. Qf3 {[%clk 0:01:57.6]} 16... Rfd8 {[%clk 0:01:35.6]}
17. Nh5 {[%clk 0:01:48.7]} 17... Kf8 {[%clk 0:00:55.7]} 18. Qh3 {[%clk
0:01:08.7]} 18... Ra7 {[%clk 0:00:36.4]} 19. Nxg7 {[%clk 0:01:02.4]} 19... Bd6
{[%clk 0:00:07.1]} 20. Qxh6 {[%clk 0:00:58.1]} 20... Ke7 {[%clk 0:00:07.4]} 21.
Bg5 {[%clk 0:00:50.1]} 21... Rg8 {[%clk 0:00:04.1]} 22. Bxd5 {[%clk 0:00:48.4]}
22... Rxg7 {[%clk 0:00:02.5]} 23. Bxf6+ {[%clk 0:00:43.1]} 23... Kf8 {[%clk
0:00:03.4]} 24. Qxg7+ {[%clk 0:00:42.4]} 24... Ke8 {[%clk 0:00:04.3]} 25. Bxc6+
{[%clk 0:00:39.8]} 1-0

[Event "*** Titled Tuesday Blitz"]
[Site "Chess.com"]
[Date "2021.03.02"]
[Round "6"]
[White "paulrusan"]
[Black "Tekushka"]
[Result "1-0"]
[WhiteElo "2335"]
[BlackElo "2433"]
[TimeControl "180+1"]
[EndTime "11:06:18 PST"]
[Termination "paulrusan won by resignation"]

1. e4 {[%clk 0:03:00.5]} 1... e6 {[%clk 0:02:59.6]} 2. Nf3 {[%clk 0:03:00]} 2...
d5 {[%clk 0:02:59.6]} 3. e5 {[%clk 0:03:00.6]} 3... c5 {[%clk 0:02:59]} 4. b4
{[%clk 0:03:01.1]} 4... cxb4 {[%clk 0:02:56.7]} 5. a3 {[%clk 0:03:01.5]} 5...
bxa3 {[%clk 0:02:52.8]} 6. d4 {[%clk 0:03:00.5]} 6... Nc6 {[%clk 0:02:50.1]} 7.
c3 {[%clk 0:02:59.3]} 7... f6 {[%clk 0:02:37.6]} 8. Bb5 {[%clk 0:02:57.4]} 8...
Bd7 {[%clk 0:02:33.9]} 9. O-O {[%clk 0:02:55.9]} 9... fxe5 {[%clk 0:02:26.2]}
10. Bxc6 {[%clk 0:02:55.1]} 10... Bxc6 {[%clk 0:02:22.9]} 11. Nxe5 {[%clk
0:02:55.6]} 11... Nf6 {[%clk 0:02:23.1]} 12. Nxc6 {[%clk 0:02:32.2]} 12... bxc6
{[%clk 0:02:21.8]} 13. Qa4 {[%clk 0:02:32.7]} 13... Qd7 {[%clk 0:02:16.7]} 14.
Bxa3 {[%clk 0:02:32.6]} 14... Bxa3 {[%clk 0:02:12.7]} 15. Qxa3 {[%clk
0:02:32.7]} 15... Kf7 {[%clk 0:02:12.4]} 16. Nd2 {[%clk 0:02:30.8]} 16... Rhb8
{[%clk 0:02:04.5]} 17. Rfb1 {[%clk 0:02:27.7]} 17... Rxb1+ {[%clk 0:00:52.7]}
18. Rxb1 {[%clk 0:02:25.8]} 18... Qc7 {[%clk 0:00:52.4]} 19. f3 {[%clk
0:02:07.7]} 19... Rb8 {[%clk 0:00:51.8]} 20. Rb3 {[%clk 0:02:05.6]} 20... Rb6
{[%clk 0:00:48.1]} 21. Rb4 {[%clk 0:01:48.6]} 21... Qb7 {[%clk 0:00:46.3]} 22.
Nb3 {[%clk 0:01:47.8]} 22... Rxb4 {[%clk 0:00:44.8]} 23. cxb4 {[%clk 0:01:47.7]}
23... Nd7 {[%clk 0:00:44.4]} 24. Nc5 {[%clk 0:01:46.5]} 24... Nxc5 {[%clk
0:00:43.2]} 25. dxc5 {[%clk 0:01:43.2]} 25... a6 {[%clk 0:00:41.5]} 26. Kf2
{[%clk 0:01:39.2]} 26... e5 {[%clk 0:00:40.3]} 27. f4 {[%clk 0:01:37.1]} 27...
exf4 {[%clk 0:00:39.7]} 28. Kf3 {[%clk 0:01:34.6]} 28... g5 {[%clk 0:00:38]} 29.
h4 {[%clk 0:01:34.4]} 29... h6 {[%clk 0:00:37.2]} 30. hxg5 {[%clk 0:01:34.7]}
30... hxg5 {[%clk 0:00:37.5]} 31. Kg4 {[%clk 0:01:30.6]} 31... d4 {[%clk
0:00:20]} 32. Kxg5 {[%clk 0:01:25.5]} 32... Qd7 {[%clk 0:00:19.8]} 33. Kxf4
{[%clk 0:01:21.2]} 33... d3 {[%clk 0:00:19.4]} 34. Ke3 {[%clk 0:01:15.8]} 34...
d2 {[%clk 0:00:19.6]} 35. Qb3+ {[%clk 0:01:15.7]} 35... Kf6 {[%clk 0:00:19.3]}
36. Qd1 {[%clk 0:01:15.8]} 36... Ke5 {[%clk 0:00:18.1]} 37. Qxd2 {[%clk
0:01:14.7]} 37... Qf7 {[%clk 0:00:16.6]} 38. Qd4+ {[%clk 0:01:13.3]} 38... Ke6
{[%clk 0:00:15.8]} 39. Qc4+ {[%clk 0:01:13.2]} 39... Ke7 {[%clk 0:00:15.6]} 40.
Qxf7+ {[%clk 0:01:13.2]} 40... Kxf7 {[%clk 0:00:13.3]} 41. Ke4 {[%clk 0:01:13]}
1-0

[Event "*** Titled Tuesday Blitz"]
[Site "Chess.com"]
[Date "2021.03.02"]
[Round "6"]
[White "delphin11"]
[Black "suneebaker"]
[Result "1-0"]
[WhiteElo "2556"]
[BlackElo "2156"]
[TimeControl "180+1"]
[EndTime "11:06:18 PST"]
[Termination "delphin11 won on time"]

1. Nf3 {[%clk 0:03:00.9]} 1... Nf6 {[%clk 0:02:59.4]} 2. g3 {[%clk 0:03:00]}
2... g6 {[%clk 0:02:59.2]} 3. b3 {[%clk 0:02:58.5]} 3... Bg7 {[%clk 0:02:58.7]}
4. Bb2 {[%clk 0:02:58.6]} 4... d6 {[%clk 0:02:58.5]} 5. d4 {[%clk 0:02:56.7]}
5... Nbd7 {[%clk 0:02:56.8]} 6. Bg2 {[%clk 0:02:56.6]} 6... O-O {[%clk
0:02:56.5]} 7. O-O {[%clk 0:02:56.5]} 7... e5 {[%clk 0:02:53.9]} 8. dxe5 {[%clk
0:02:55.4]} 8... Ng4 {[%clk 0:02:51.7]} 9. Qd2 {[%clk 0:02:43.1]} 9... Ngxe5
{[%clk 0:02:48.6]} 10. Nxe5 {[%clk 0:02:32.1]} 10... Nxe5 {[%clk 0:02:48]} 11.
c4 {[%clk 0:02:31.5]} 11... Qe7 {[%clk 0:02:28.9]} 12. Nc3 {[%clk 0:02:28.2]}
12... c6 {[%clk 0:02:19.8]} 13. Rad1 {[%clk 0:02:25.3]} 13... Rd8 {[%clk
0:02:13.7]} 14. Ne4 {[%clk 0:02:10.7]} 14... Be6 {[%clk 0:01:49]} 15. Nxd6
{[%clk 0:01:51.8]} 15... c5 {[%clk 0:01:36.6]} 16. f4 {[%clk 0:01:41.9]} 16...
Ng4 {[%clk 0:01:19]} 17. Bxg7 {[%clk 0:01:34.9]} 17... Kxg7 {[%clk 0:01:17.7]}
18. e4 {[%clk 0:01:30.5]} 18... f6 {[%clk 0:00:53.7]} 19. h3 {[%clk 0:01:20.1]}
19... Nh6 {[%clk 0:00:53.1]} 20. Rf3 {[%clk 0:01:05]} 20... Nf7 {[%clk
0:00:49.7]} 21. Rd3 {[%clk 0:01:05.4]} 21... Nxd6 {[%clk 0:00:26.2]} 22. Rxd6
{[%clk 0:01:06.3]} 22... Re8 {[%clk 0:00:18.4]} 23. Qc3 {[%clk 0:00:58.8]} 23...
Rad8 {[%clk 0:00:14.6]} 24. e5 {[%clk 0:00:55.9]} 24... f5 {[%clk 0:00:09.6]}
25. Bxb7 {[%clk 0:00:48.7]} 25... Qxb7 {[%clk 0:00:01.3]} 26. Rxd8 {[%clk
0:00:48.2]} 26... Rxd8 {[%clk 0:00:01.3]} 27. Rxd8 {[%clk 0:00:48.3]} 1-0

[Event "*** Titled Tuesday Blitz"]
[Site "Chess.com"]
[Date "2021.03.02"]
[Round "6"]
[White "indfraeng"]
[Black "kubal123"]
[Result "1-0"]
[WhiteElo "2401"]
[BlackElo "2218"]
[TimeControl "180+1"]
[EndTime "11:06:21 PST"]
[Termination "indfraeng won by resignation"]

1. d4 {[%clk 0:03:00.9]} 1... Nf6 {[%clk 0:02:59.5]} 2. c4 {[%clk 0:03:01.8]}
2... e6 {[%clk 0:02:58.1]} 3. g3 {[%clk 0:03:02.2]} 3... Bb4+ {[%clk 0:02:58]}
4. Bd2 {[%clk 0:03:02.1]} 4... a5 {[%clk 0:02:58.5]} 5. Bg2 {[%clk 0:03:02.4]}
5... O-O {[%clk 0:02:58.1]} 6. Nf3 {[%clk 0:03:02.9]} 6... d6 {[%clk 0:02:56.4]}
7. O-O {[%clk 0:03:02.4]} 7... Nbd7 {[%clk 0:02:55.5]} 8. Nc3 {[%clk 0:02:58.6]}
8... e5 {[%clk 0:02:52]} 9. Qc2 {[%clk 0:02:57.6]} 9... Re8 {[%clk 0:02:46.8]}
10. e4 {[%clk 0:02:54.8]} 10... exd4 {[%clk 0:02:27.5]} 11. Nxd4 {[%clk
0:02:55.7]} 11... Nc5 {[%clk 0:02:13.6]} 12. Rfe1 {[%clk 0:02:54.5]} 12... c6
{[%clk 0:02:12.3]} 13. Rad1 {[%clk 0:02:49.2]} 13... Bg4 {[%clk 0:02:10.1]} 14.
f3 {[%clk 0:02:48.4]} 14... Bc8 {[%clk 0:02:07.8]} 15. h3 {[%clk 0:02:44.1]}
15... a4 {[%clk 0:02:04.1]} 16. f4 {[%clk 0:02:38.4]} 16... a3 {[%clk
0:02:01.9]} 17. b3 {[%clk 0:02:37.9]} 17... Qb6 {[%clk 0:01:51.6]} 18. Be3
{[%clk 0:02:32.1]} 18... Bxc3 {[%clk 0:01:49.4]} 19. Qxc3 {[%clk 0:02:33]} 19...
Nfxe4 {[%clk 0:01:47.5]} 20. Qc2 {[%clk 0:02:28.1]} 20... Nxg3 {[%clk 0:01:40]}
21. Bf2 {[%clk 0:02:20.5]} 21... Nge4 {[%clk 0:01:05.6]} 22. Bxe4 {[%clk
0:02:15.3]} 22... Nxe4 {[%clk 0:00:48]} 23. Rxe4 {[%clk 0:02:16.2]} 23... Bxh3
{[%clk 0:00:47.9]} 24. Nb5 {[%clk 0:02:05.3]} 24... Qa5 {[%clk 0:00:37.6]} 25.
Nxd6 {[%clk 0:02:04.2]} 25... Rxe4 {[%clk 0:00:32.1]} 26. Qxe4 {[%clk
0:02:05.1]} 26... Qh5 {[%clk 0:00:29.5]} 27. Re1 {[%clk 0:01:59.6]} 27... h6
{[%clk 0:00:25.9]} 28. c5 {[%clk 0:01:51.4]} 28... Qg4+ {[%clk 0:00:23.8]} 29.
Kh2 {[%clk 0:01:50.7]} 29... f5 {[%clk 0:00:24.3]} 30. Qe6+ {[%clk 0:01:48.1]}
30... Kh7 {[%clk 0:00:24.6]} 31. Bg3 {[%clk 0:01:39.7]} 31... Qh5 {[%clk
0:00:18.8]} 32. Qf7 {[%clk 0:01:27.8]} 32... Qg4 {[%clk 0:00:12.3]} 33. Ne8
{[%clk 0:01:21]} 33... Kh8 {[%clk 0:00:06.6]} 34. Qf8+ {[%clk 0:01:10.1]} 34...
Kh7 {[%clk 0:00:06.1]} 35. Nf6+ {[%clk 0:01:09.3]} 35... gxf6 {[%clk 0:00:05.7]}
36. Re7+ {[%clk 0:01:06.7]} 36... Kg6 {[%clk 0:00:06.1]} 37. Rg7+ {[%clk
0:01:06.4]} 37... Kh5 {[%clk 0:00:06.7]} 38. Qf7+ {[%clk 0:01:07.3]} 1-0

[Event "*** Titled Tuesday Blitz"]
[Site "Chess.com"]
[Date "2021.03.02"]
[Round "6"]
[White "dodorox"]
[Black "Anaiy"]
[Result "0-1"]
[WhiteElo "2146"]
[BlackElo "2229"]
[TimeControl "180+1"]
[EndTime "11:06:22 PST"]
[Termination "Anaiy won on time"]

1. d4 {[%clk 0:03:00.9]} 1... d5 {[%clk 0:02:59.8]} 2. c4 {[%clk 0:03:00.9]}
2... e6 {[%clk 0:02:59.5]} 3. Nc3 {[%clk 0:03:00.9]} 3... Be7 {[%clk 0:02:59.6]}
4. cxd5 {[%clk 0:03:00.8]} 4... exd5 {[%clk 0:02:59.5]} 5. Bf4 {[%clk
0:03:01.4]} 5... c6 {[%clk 0:02:59.3]} 6. e3 {[%clk 0:03:01.8]} 6... Bf5 {[%clk
0:02:59.8]} 7. Qb3 {[%clk 0:02:56.5]} 7... Qb6 {[%clk 0:02:59.4]} 8. Nf3 {[%clk
0:02:46.7]} 8... Nf6 {[%clk 0:02:57.7]} 9. Be2 {[%clk 0:02:35.7]} 9... Nbd7
{[%clk 0:02:56.6]} 10. O-O {[%clk 0:02:32]} 10... O-O {[%clk 0:02:56.1]} 11.
Rfc1 {[%clk 0:02:21.7]} 11... Qxb3 {[%clk 0:02:52.3]} 12. axb3 {[%clk
0:02:21.2]} 12... a6 {[%clk 0:02:52.1]} 13. Na4 {[%clk 0:02:00.1]} 13... Ne4
{[%clk 0:02:49.6]} 14. Bg3 {[%clk 0:01:43.1]} 14... Rad8 {[%clk 0:02:36.4]} 15.
Bc7 {[%clk 0:01:36.3]} 15... Rc8 {[%clk 0:02:36.3]} 16. Ba5 {[%clk 0:01:36.5]}
16... Bg4 {[%clk 0:02:32.2]} 17. h3 {[%clk 0:01:30.6]} 17... Bxf3 {[%clk
0:02:26.1]} 18. Bxf3 {[%clk 0:01:31.5]} 18... Ndf6 {[%clk 0:02:23.3]} 19. Nc5
{[%clk 0:01:20.6]} 19... Nxc5 {[%clk 0:02:17.4]} 20. dxc5 {[%clk 0:01:19.5]}
20... Bd8 {[%clk 0:02:16.5]} 21. Bxd8 {[%clk 0:01:10.3]} 21... Rfxd8 {[%clk
0:02:15.4]} 22. Ra4 {[%clk 0:01:07.5]} 22... Re8 {[%clk 0:02:14.6]} 23. Rd4
{[%clk 0:00:55.8]} 23... g6 {[%clk 0:02:12.4]} 24. g3 {[%clk 0:00:50.4]} 24...
Re7 {[%clk 0:02:10.9]} 25. b4 {[%clk 0:00:46.6]} 25... Ne8 {[%clk 0:02:07.1]}
26. Re1 {[%clk 0:00:42.9]} 26... Nc7 {[%clk 0:02:04.3]} 27. Kf1 {[%clk
0:00:24.7]} 27... Rce8 {[%clk 0:02:03.4]} 28. Red1 {[%clk 0:00:17.4]} 28... Nb5
{[%clk 0:01:57.5]} 29. R4d2 {[%clk 0:00:15.8]} 29... Kg7 {[%clk 0:01:35.2]} 30.
Kg2 {[%clk 0:00:14.6]} 30... Nc7 {[%clk 0:01:34.7]} 31. Kf1 {[%clk 0:00:13.6]}
31... h5 {[%clk 0:01:34.5]} 32. Kg2 {[%clk 0:00:13.9]} 32... Kf6 {[%clk
0:01:32]} 33. Rd4 {[%clk 0:00:13.5]} 33... Ne6 {[%clk 0:01:30.9]} 34. R4d2
{[%clk 0:00:14]} 34... Ng5 {[%clk 0:01:30.9]} 35. Rd4 {[%clk 0:00:12.2]} 35...
Nxf3 {[%clk 0:01:28.1]} 36. Kxf3 {[%clk 0:00:13.1]} 36... Re4 {[%clk 0:01:26.4]}
37. R1d2 {[%clk 0:00:10.5]} 37... Kf5 {[%clk 0:01:24.2]} 38. Rd1 {[%clk
0:00:09.8]} 38... g5 {[%clk 0:01:24.2]} 39. Kg2 {[%clk 0:00:06]} 39... Rxd4
{[%clk 0:01:19.3]} 40. Rxd4 {[%clk 0:00:05.5]} 40... Re4 {[%clk 0:01:17.9]} 41.
Kf3 {[%clk 0:00:03]} 41... g4+ {[%clk 0:01:17.3]} 42. hxg4+ {[%clk 0:00:03.3]}
42... hxg4+ {[%clk 0:01:18]} 43. Ke2 {[%clk 0:00:03.3]} 43... Rxd4 {[%clk
0:01:18.4]} 44. exd4 {[%clk 0:00:03.6]} 44... Ke4 {[%clk 0:01:19.3]} 0-1

[Event "*** Titled Tuesday Blitz"]
[Site "Chess.com"]
[Date "2021.03.02"]
[Round "6"]
[White "TorFredrikKaasen"]
[Black "EvgenyT"]
[Result "0-1"]
[WhiteElo "2726"]
[BlackElo "2919"]
[TimeControl "180+1"]
[EndTime "11:06:24 PST"]
[Termination "EvgenyT won by resignation"]

1. e4 {[%clk 0:03:00.9]} 1... e5 {[%clk 0:02:59.3]} 2. Nf3 {[%clk 0:03:01.3]}
2... Nc6 {[%clk 0:02:59.9]} 3. Bb5 {[%clk 0:03:02]} 3... a6 {[%clk 0:02:59.5]}
4. Ba4 {[%clk 0:03:02.1]} 4... Nf6 {[%clk 0:02:59.7]} 5. O-O {[%clk 0:03:02.6]}
5... Be7 {[%clk 0:02:59.5]} 6. Re1 {[%clk 0:03:02.5]} 6... b5 {[%clk 0:02:58.8]}
7. Bb3 {[%clk 0:03:03.1]} 7... O-O {[%clk 0:02:59.3]} 8. a4 {[%clk 0:03:02.9]}
8... b4 {[%clk 0:02:58.7]} 9. d4 {[%clk 0:03:03.1]} 9... d6 {[%clk 0:02:58.6]}
10. dxe5 {[%clk 0:03:02.6]} 10... Nxe5 {[%clk 0:02:56.7]} 11. Nxe5 {[%clk
0:03:02.3]} 11... dxe5 {[%clk 0:02:57.3]} 12. Qf3 {[%clk 0:03:00.6]} 12... a5
{[%clk 0:02:51.1]} 13. Nd2 {[%clk 0:02:57]} 13... Bc5 {[%clk 0:02:42.8]} 14. h3
{[%clk 0:02:47.5]} 14... Qe7 {[%clk 0:02:32.2]} 15. Nf1 {[%clk 0:02:22.8]} 15...
Be6 {[%clk 0:02:17.2]} 16. Ng3 {[%clk 0:02:11.2]} 16... Bxb3 {[%clk 0:02:04.6]}
17. Nf5 {[%clk 0:01:57.1]} 17... Qe6 {[%clk 0:02:02.1]} 18. cxb3 {[%clk
0:01:57.6]} 18... g6 {[%clk 0:01:51.3]} 19. Nh6+ {[%clk 0:01:46.9]} 19... Kg7
{[%clk 0:01:50.5]} 20. Bg5 {[%clk 0:01:38.7]} 20... Bd4 {[%clk 0:01:47.1]} 21.
Rac1 {[%clk 0:01:22.2]} 21... c5 {[%clk 0:01:43.4]} 22. Qg3 {[%clk 0:01:05.6]}
22... Kh8 {[%clk 0:01:24.6]} 23. Ng4 {[%clk 0:00:51.9]} 23... Nxg4 {[%clk
0:01:21.1]} 24. hxg4 {[%clk 0:00:52.8]} 24... f6 {[%clk 0:01:10.4]} 25. Be3
{[%clk 0:00:50]} 25... Qxb3 {[%clk 0:01:05]} 26. g5 {[%clk 0:00:40.6]} 26... Ra6
{[%clk 0:00:58.6]} 27. Qh2 {[%clk 0:00:26.5]} 27... Qxb2 {[%clk 0:00:51.5]} 28.
Rxc5 {[%clk 0:00:21.5]} 28... Bxc5 {[%clk 0:00:47.9]} 29. Bxc5 {[%clk
0:00:22.4]} 29... Qc3 {[%clk 0:00:46.7]} 0-1

[Event "*** Titled Tuesday Blitz"]
[Site "Chess.com"]
[Date "2021.03.02"]
[Round "6"]
[White "Iskusnyh"]
[Black "Herman-NY"]
[Result "1-0"]
[WhiteElo "2609"]
[BlackElo "2466"]
[TimeControl "180+1"]
[EndTime "11:06:26 PST"]
[Termination "Iskusnyh won by resignation"]

1. d4 {[%clk 0:03:00.9]} 1... Nf6 {[%clk 0:02:59.5]} 2. c4 {[%clk 0:03:00.5]}
2... g6 {[%clk 0:03:00.1]} 3. g3 {[%clk 0:03:00.7]} 3... Bg7 {[%clk 0:03:00.1]}
4. Bg2 {[%clk 0:03:01.3]} 4... O-O {[%clk 0:03:00.8]} 5. Nc3 {[%clk 0:03:01.5]}
5... d6 {[%clk 0:03:01.3]} 6. Nf3 {[%clk 0:03:00.9]} 6... c5 {[%clk 0:03:01.8]}
7. O-O {[%clk 0:02:59]} 7... Nc6 {[%clk 0:03:02.2]} 8. dxc5 {[%clk 0:02:57.6]}
8... dxc5 {[%clk 0:03:03.1]} 9. Be3 {[%clk 0:02:49.4]} 9... b6 {[%clk
0:03:03.1]} 10. Qc1 {[%clk 0:02:31.2]} 10... Bd7 {[%clk 0:02:15]} 11. Rd1 {[%clk
0:02:26.6]} 11... Qc8 {[%clk 0:01:38.8]} 12. Bh6 {[%clk 0:02:24.9]} 12... Bh3
{[%clk 0:01:35]} 13. Bh1 {[%clk 0:02:21.6]} 13... Rd8 {[%clk 0:00:35.8]} 14.
Rxd8+ {[%clk 0:01:55.7]} 14... Qxd8 {[%clk 0:00:35.4]} 15. Bxg7 {[%clk
0:01:54.4]} 15... Kxg7 {[%clk 0:00:35.5]} 16. Qf4 {[%clk 0:01:46]} 16... Rc8
{[%clk 0:00:24.6]} 17. Rd1 {[%clk 0:01:37.2]} 17... Qc7 {[%clk 0:00:22.6]} 18.
Qh4 {[%clk 0:01:27.5]} 18... Bf5 {[%clk 0:00:17.2]} 19. Nd5 {[%clk 0:01:22.9]}
19... Nxd5 {[%clk 0:00:09.8]} 20. cxd5 {[%clk 0:01:22.4]} 20... Ne5 {[%clk
0:00:06]} 21. e4 {[%clk 0:00:43.1]} 21... Nxf3+ {[%clk 0:00:03.4]} 22. Bxf3
{[%clk 0:00:42.1]} 22... Bd7 {[%clk 0:00:04.3]} 23. Qxe7 {[%clk 0:00:40.5]}
23... Ba4 {[%clk 0:00:04.3]} 24. Qxc7 {[%clk 0:00:38.6]} 24... Rxc7 {[%clk
0:00:04.8]} 25. Rd2 {[%clk 0:00:38.2]} 25... Kf6 {[%clk 0:00:04.3]} 26. Bg2
{[%clk 0:00:36.6]} 26... g5 {[%clk 0:00:03.5]} 27. f4 {[%clk 0:00:36.7]} 27...
gxf4 {[%clk 0:00:03.6]} 28. gxf4 {[%clk 0:00:36.7]} 1-0

[Event "*** Titled Tuesday Blitz"]
[Site "Chess.com"]
[Date "2021.03.02"]
[Round "6"]
[White "Chuchofrio1"]
[Black "RamyresCoelho"]
[Result "0-1"]
[WhiteElo "2274"]
[BlackElo "2067"]
[TimeControl "180+1"]
[EndTime "11:06:28 PST"]
[Termination "RamyresCoelho won by checkmate"]

1. e4 {[%clk 0:02:18]} 1... c5 {[%clk 0:02:58.7]} 2. Nc3 {[%clk 0:02:16.9]} 2...
Nc6 {[%clk 0:02:58.6]} 3. Bb5 {[%clk 0:02:16.2]} 3... Nd4 {[%clk 0:02:56.9]} 4.
Bc4 {[%clk 0:02:15]} 4... e6 {[%clk 0:02:54.3]} 5. Nge2 {[%clk 0:02:12.8]} 5...
Nxe2 {[%clk 0:02:54.1]} 6. Qxe2 {[%clk 0:02:13.7]} 6... a6 {[%clk 0:02:53.8]} 7.
a4 {[%clk 0:02:13]} 7... d6 {[%clk 0:02:52.9]} 8. d3 {[%clk 0:02:12.5]} 8... Qc7
{[%clk 0:02:53.3]} 9. f4 {[%clk 0:02:10.4]} 9... Nf6 {[%clk 0:02:52.3]} 10. O-O
{[%clk 0:02:09.6]} 10... Be7 {[%clk 0:02:52.5]} 11. f5 {[%clk 0:02:07.6]} 11...
O-O {[%clk 0:02:45.9]} 12. Bg5 {[%clk 0:02:06.3]} 12... h6 {[%clk 0:02:43.6]}
13. Bh4 {[%clk 0:02:04.9]} 13... Rb8 {[%clk 0:02:31.5]} 14. a5 {[%clk
0:02:03.4]} 14... Bd7 {[%clk 0:02:30.8]} 15. Qf3 {[%clk 0:02:01.2]} 15... e5
{[%clk 0:02:13]} 16. Bxf6 {[%clk 0:01:50.7]} 16... Bxf6 {[%clk 0:02:13.9]} 17.
Nd5 {[%clk 0:01:50.3]} 17... Qd8 {[%clk 0:02:14.1]} 18. Nxf6+ {[%clk 0:01:47.1]}
18... Qxf6 {[%clk 0:02:15]} 19. g4 {[%clk 0:01:46]} 19... Bc6 {[%clk 0:02:10.3]}
20. Kf2 {[%clk 0:01:44]} 20... Qh4+ {[%clk 0:02:08.8]} 21. Ke2 {[%clk
0:01:42.7]} 21... Qxh2+ {[%clk 0:02:07.8]} 22. Rf2 {[%clk 0:01:40.3]} 22... Qh4
{[%clk 0:02:04.8]} 23. Rg1 {[%clk 0:01:38.2]} 23... Qg5 {[%clk 0:02:04.7]} 24.
Rh2 {[%clk 0:01:35.8]} 24... Rbd8 {[%clk 0:01:49.4]} 25. Rf1 {[%clk 0:01:34.3]}
25... Qf6 {[%clk 0:01:35]} 26. Rg1 {[%clk 0:01:32.3]} 26... Qg5 {[%clk
0:01:34.3]} 27. Rh5 {[%clk 0:01:31]} 27... Qf4 {[%clk 0:01:14.1]} 28. Qh3 {[%clk
0:01:26.6]} 28... d5 {[%clk 0:01:09.9]} 29. g5 {[%clk 0:01:25.3]} 29... dxc4
{[%clk 0:01:01.6]} 30. gxh6 {[%clk 0:01:23.6]} 30... cxd3+ {[%clk 0:00:57.9]}
31. cxd3 {[%clk 0:01:24.5]} 31... g6 {[%clk 0:00:41.1]} 32. fxg6 {[%clk
0:01:19]} 32... fxg6 {[%clk 0:00:37.3]} 33. Rxg6+ {[%clk 0:01:16.6]} 33... Kh8
{[%clk 0:00:37.2]} 34. Rf5 {[%clk 0:01:13.3]} 34... Rxf5 {[%clk 0:00:34.2]} 35.
exf5 {[%clk 0:01:11.3]} 35... e4 {[%clk 0:00:26.2]} 36. d4 {[%clk 0:01:03.8]}
36... Rxd4 {[%clk 0:00:22.6]} 37. Qc3 {[%clk 0:01:02.3]} 37... Bb5+ {[%clk
0:00:18]} 38. Ke1 {[%clk 0:00:57]} 38... Qf1# {[%clk 0:00:17.6]} 0-1

[Event "*** Titled Tuesday Blitz"]
[Site "Chess.com"]
[Date "2021.03.02"]
[Round "6"]
[White "Jan1401"]
[Black "Evachess2006"]
[Result "1-0"]
[WhiteElo "2370"]
[BlackElo "1602"]
[TimeControl "180+1"]
[EndTime "11:06:29 PST"]
[Termination "Jan1401 won on time"]

1. e4 {[%clk 0:03:00.9]} 1... e5 {[%clk 0:02:58.6]} 2. Bc4 {[%clk 0:03:00.2]}
2... Bc5 {[%clk 0:02:55.3]} 3. Nc3 {[%clk 0:02:59.3]} 3... Nf6 {[%clk
0:02:51.3]} 4. d3 {[%clk 0:02:59]} 4... Nc6 {[%clk 0:02:49.3]} 5. f4 {[%clk
0:02:58.5]} 5... exf4 {[%clk 0:02:48.1]} 6. Bxf4 {[%clk 0:02:55.2]} 6... d6
{[%clk 0:02:43.1]} 7. Nf3 {[%clk 0:02:54.7]} 7... O-O {[%clk 0:02:34.7]} 8. Qd2
{[%clk 0:02:46.4]} 8... Bg4 {[%clk 0:01:45.1]} 9. Rf1 {[%clk 0:02:33.6]} 9...
Bxf3 {[%clk 0:01:20.4]} 10. gxf3 {[%clk 0:02:27]} 10... Ne5 {[%clk 0:01:21]} 11.
Bb3 {[%clk 0:02:22.4]} 11... Nh5 {[%clk 0:01:16.1]} 12. Bg5 {[%clk 0:02:01]}
12... Qd7 {[%clk 0:01:09.4]} 13. d4 {[%clk 0:01:58.5]} 13... Bxd4 {[%clk
0:00:44.9]} 14. Qxd4 {[%clk 0:01:56.6]} 14... Qh3 {[%clk 0:00:42.8]} 15. Qf2
{[%clk 0:01:50.5]} 15... h6 {[%clk 0:00:28]} 16. Be3 {[%clk 0:01:44.7]} 16...
Kh8 {[%clk 0:00:07.2]} 17. O-O-O {[%clk 0:01:31.5]} 17... f5 {[%clk 0:00:06.2]}
18. exf5 {[%clk 0:01:30.9]} 18... Qxf5 {[%clk 0:00:03.6]} 19. Nd5 {[%clk
0:01:23]} 19... Nf6 {[%clk 0:00:03.1]} 20. Nxf6 {[%clk 0:01:16.2]} 20... Rxf6
{[%clk 0:00:02.6]} 21. Bd4 {[%clk 0:01:16.4]} 21... Qxf3 {[%clk 0:00:02.1]} 22.
Qxf3 {[%clk 0:01:14.1]} 22... Rxf3 {[%clk 0:00:01.9]} 23. Bxe5 {[%clk
0:01:12.8]} 23... Rxf1 {[%clk 0:00:02.1]} 24. Bxg7+ {[%clk 0:01:12.6]} 24...
Kxg7 {[%clk 0:00:01.9]} 25. Rxf1 {[%clk 0:01:13.1]} 25... Rf8 {[%clk 0:00:02.3]}
26. Rxf8 {[%clk 0:01:11.5]} 26... Kxf8 {[%clk 0:00:03.2]} 27. Kd2 {[%clk
0:01:11.8]} 27... Ke7 {[%clk 0:00:03.2]} 28. Ke3 {[%clk 0:01:12]} 28... c6
{[%clk 0:00:04.1]} 29. Kf4 {[%clk 0:01:11.8]} 29... Kf6 {[%clk 0:00:05]} 30. c3
{[%clk 0:01:09.7]} 30... a6 {[%clk 0:00:05.1]} 31. Bc2 {[%clk 0:01:09]} 31... b5
{[%clk 0:00:05]} 32. b4 {[%clk 0:01:06.2]} 32... c5 {[%clk 0:00:03.1]} 33. Be4
{[%clk 0:01:06]} 33... cxb4 {[%clk 0:00:01.9]} 34. cxb4 {[%clk 0:01:05.9]} 34...
Ke6 {[%clk 0:00:02.3]} 35. Bb7 {[%clk 0:01:05.5]} 35... d5 {[%clk 0:00:01]} 36.
Bxa6 {[%clk 0:01:05.1]} 1-0